fUST/lending_fUST_20240105
["ID","MTS","AMOUNT","RATE_DAILY","PERIOD"]
[310284587,1704462639809,-500.0,0.0003589,7]
[310284588,1704462639818,-500.0,0.0003589,7]
[310284589,1704462639827,-500.0,0.0003589,7]
[310284590,1704462639836,-500.0,0.0003589,7]
[310284591,1704462639846,-2492.02,0.0003589,7]
[310284592,1704462639855,-500.0,0.0003589,7]
[310284593,1704462639865,-1087.22,0.0003589,7]
[310284594,1704462639875,-891.1,0.0003589,7]
[310284595,1704462639884,-500.0,0.0003589,7]
[310284596,1704462639894,-27748.25,0.0003589,3]
[310284597,1704462639904,-224.09206611,0.0003589,7]
[310284598,1704462639913,-500.0,0.0003589,7]
[310284599,1704462639923,-5401.14,0.0003589,7]
[310284600,1704462639932,-904.1,0.0003589,7]
[310284601,1704462639942,-322.38104457,0.0003589,7]
[310284602,1704462639951,-500.0,0.0003589,7]
[310284603,1704462639960,-500.0,0.0003589,7]
[310284604,1704462639970,-3724.39,0.0003589,7]
[310284606,1704462639979,-500.0,0.0003589,7]
[310284607,1704462639989,-500.0,0.0003589,7]
[310284608,1704462639999,-500.0,0.0003589,7]
[310284609,1704462640009,-500.0,0.0003589,7]
[310284610,1704462640019,-500.0,0.0003589,7]
[310284611,1704462640029,-500.0,0.0003589,7]
[310284612,1704462640039,-500.0,0.0003589,7]
[310284614,1704462640048,-500.0,0.0003589,7]
[310284615,1704462640058,-500.0,0.0003589,7]
[310284617,1704462640068,-500.0,0.0003589,7]
[310284620,1704462640077,-154.79876161,0.000359,4]
[310284623,1704462640087,-150.0,0.00035937,7]
[310284625,1704462640096,-1000.0,0.00036,36]
[310284627,1704462640106,-409.896241,0.00036,30]
[310284630,1704462640115,-469.08343033,0.00036064,2]
[310284632,1704462640125,-332.8517379,0.00036078,4]
[310284634,1704462640135,-279.45579942,0.00036078,4]
[310284636,1704462640145,-722.06768057,0.00036078,4]
[310284638,1704462640154,-2093.24881992,0.00036079,4]
[310284640,1704462640164,-366.67548664,0.00036079,4]
[310284642,1704462640173,-13297.9007152,0.00036099,2]
[310284644,1704462640183,-43937.1155955,0.000361,2]
[310284646,1704462640193,-14106.26218002,0.00036155,2]
[310284649,1704462640203,-2644.92415875,0.00036155,2]
[310284651,1704462640212,-7830.72334905,0.00036155,2]
[310284653,1704462640222,-6127.69791831,0.00036155,2]
[310284655,1704462640231,-295.50181395,0.00036162,4]
[310284657,1704462640241,-2600.57367398,0.00036162,4]
[310284659,1704462640251,-465.50078821,0.00036163,2]
[310284661,1704462640260,-155.56056173,0.00036163,2]
[310284663,1704462640270,-2264.83173344,0.00036163,4]
[310284665,1704462640280,-199.11669018,0.00036164,3]
[310284667,1704462640290,-500.0,0.00036164,7]
[310284669,1704462640299,-500.0,0.00036164,7]
[310284671,1704462640308,-500.0,0.00036164,7]
[310284673,1704462640317,-500.0,0.00036164,7]
[310284675,1704462640327,-500.0,0.00036164,7]
[310284677,1704462640336,-500.0,0.00036164,7]
[310284679,1704462640346,-500.0,0.00036164,7]
[310284681,1704462640355,-500.0,0.00036164,7]
[310284683,1704462640365,-500.0,0.00036164,7]
[310284685,1704462640374,-500.0,0.00036164,7]
[310284687,1704462640383,-500.0,0.00036164,7]
[310284689,1704462640393,-500.0,0.00036164,7]
[310284691,1704462640403,-500.0,0.00036164,7]
[310284693,1704462640413,-500.0,0.00036164,7]
[310284695,1704462640423,-500.0,0.00036164,7]
[310284697,1704462640432,-500.0,0.00036164,7]
[310284699,1704462640442,-500.0,0.00036164,7]
[310284701,1704462640451,-517.23,0.00036164,7]
[310284703,1704462640461,-500.0,0.00036164,7]
[310284705,1704462640470,-500.0,0.00036164,7]
[310284707,1704462640480,-500.0,0.00036164,7]
[310284709,1704462640490,-2142.17,0.00036164,7]
[310284711,1704462640501,-500.0,0.00036164,7]
[310284713,1704462640512,-500.0,0.00036164,7]
[310284715,1704462640524,-500.0,0.00036164,7]
[310284717,1704462640534,-651.21,0.00036164,7]
[310284719,1704462640545,-500.0,0.00036164,7]
[310284721,1704462640557,-1277.99,0.00036164,7]
[310284723,1704462640568,-500.0,0.00036164,7]
[310284725,1704462640578,-500.0,0.00036164,7]
[310284727,1704462640588,-500.0,0.00036164,7]
[310284729,1704462640598,-890.84,0.00036164,7]
[310284731,1704462640608,-500.0,0.00036164,7]
[310284733,1704462640618,-500.0,0.00036164,7]
[310284735,1704462640628,-500.0,0.00036164,7]
[310284737,1704462640639,-703.55,0.00036164,7]
[310284739,1704462640649,-500.0,0.00036164,7]
[310284741,1704462640659,-500.0,0.00036164,7]
[310284743,1704462640668,-500.0,0.00036164,7]
[310284745,1704462640678,-500.0,0.00036164,7]
[310284747,1704462640688,-2492.02,0.00036164,7]
[310284749,1704462640697,-500.0,0.00036164,7]
[310284751,1704462640707,-1087.22,0.00036164,7]
[310284753,1704462640716,-891.1,0.00036164,7]
[310284755,1704462640725,-500.0,0.00036164,7]
[310284757,1704462640734,-27748.25,0.00036164,3]
[310284759,1704462640744,-500.0,0.00036164,7]
[310284761,1704462640753,-5401.14,0.00036164,7]
[310284763,1704462640762,-904.1,0.00036164,7]
[310284765,1704462640776,-500.0,0.00036164,7]
[310284767,1704462640785,-537.72586878,0.00036164,7]
[310284769,1704462640794,-3724.39,0.00036164,7]
[310284771,1704462640804,-500.0,0.00036164,7]
[310284773,1704462640814,-500.0,0.00036164,7]
[310284775,1704462640824,-500.0,0.00036164,7]
[310284777,1704462640833,-500.0,0.00036164,7]
[310284780,1704462640843,-500.0,0.00036164,7]
[310284782,1704462640852,-500.0,0.00036164,7]
[310284784,1704462640862,-500.0,0.00036164,7]
[310284786,1704462640871,-150.0,0.00036257,7]
[310284800,1704462640880,-234.49604329,0.00036437,7]
[310284803,1704462641015,-350.61187532,0.00036437,7]
[310284805,1704462641027,-243.90917476,0.00036437,7]
[310284807,1704462641038,-384.20030341,0.00036437,7]
[310284809,1704462641047,-500.0,0.00036437,7]
[310284810,1704462641056,-500.0,0.00036437,7]
[310284812,1704462641068,-500.0,0.00036438,7]
[310284813,1704462641077,-500.0,0.00036438,7]
[310284815,1704462641087,-500.0,0.00036438,7]
[310284817,1704462641097,-500.0,0.00036438,7]
[310284819,1704462641106,-500.0,0.00036438,7]
[310284821,1704462641115,-500.0,0.00036438,7]
[310284823,1704462641125,-500.0,0.00036438,7]
[310284825,1704462641135,-500.0,0.00036438,7]
[310284827,1704462641145,-500.0,0.00036438,7]
[310284829,1704462641154,-500.0,0.00036438,7]
[310284831,1704462641164,-500.0,0.00036438,7]
[310284833,1704462641173,-500.0,0.00036438,7]
[310284835,1704462641181,-500.0,0.00036438,7]
[310284837,1704462641190,-500.0,0.00036438,7]
[310284838,1704462641199,-500.0,0.00036438,7]
[310284840,1704462641208,-517.23,0.00036438,7]
[310284842,1704462641218,-500.0,0.00036438,7]
[310284844,1704462641228,-500.0,0.00036438,7]
[310284846,1704462641238,-500.0,0.00036438,7]
[310284848,1704462641247,-2142.17,0.00036438,7]
[310284850,1704462641257,-500.0,0.00036438,7]
[310284852,1704462641266,-500.0,0.00036438,7]
[310284854,1704462641276,-651.21,0.00036438,7]
[310284856,1704462641286,-500.0,0.00036438,7]
[310284858,1704462641295,-1277.99,0.00036438,7]
[310284860,1704462641304,-500.0,0.00036438,7]
[310284862,1704462641314,-500.0,0.00036438,7]
[310284864,1704462641323,-500.0,0.00036438,7]
[310284865,1704462641333,-890.84,0.00036438,7]
[310284868,1704462641343,-500.0,0.00036438,7]
[310284869,1704462641352,-500.0,0.00036438,7]
[310284871,1704462641362,-500.0,0.00036438,7]
[310284873,1704462641370,-703.55,0.00036438,7]
[310284875,1704462641380,-500.0,0.00036438,7]
[310284877,1704462641389,-500.0,0.00036438,7]
[310284879,1704462641399,-500.0,0.00036438,7]
[310284881,1704462641408,-2492.02,0.00036438,7]
[310284883,1704462641417,-500.0,0.00036438,7]
[310284885,1704462641428,-1087.22,0.00036438,7]
[310284887,1704462641437,-891.1,0.00036438,7]
[310284889,1704462641446,-500.0,0.00036438,7]
[310284891,1704462641455,-27748.25,0.00036438,3]
[310284893,1704462641464,-500.0,0.00036438,7]
[310284895,1704462641473,-5401.14,0.00036438,7]
[310284897,1704462641482,-904.1,0.00036438,7]
[310284898,1704462641492,-500.0,0.00036438,7]
[310284901,1704462641502,-3724.39,0.00036438,7]
[310284903,1704462641511,-500.0,0.00036438,7]
[310284904,1704462641522,-500.0,0.00036438,7]
[310284906,1704462641531,-500.0,0.00036438,7]
[310284908,1704462641540,-500.0,0.00036438,7]
[310284910,1704462641550,-500.0,0.00036438,7]
[310284912,1704462641560,-500.0,0.00036438,7]
[310284914,1704462641570,-12206.9372436,0.00036699,5]
[310284916,1704462641579,-500.0,0.00036712,7]
[310284918,1704462641588,-500.0,0.00036712,7]
[310284920,1704462641597,-206.3840092,0.00036712,7]
[310284922,1704462641606,-500.0,0.00036712,7]
[310284924,1704462641615,-500.0,0.00036712,7]
[310284926,1704462641626,-500.0,0.00036712,7]
[310284928,1704462641635,-500.0,0.00036712,7]
[310284930,1704462641644,-500.0,0.00036712,7]
[310284932,1704462641653,-500.0,0.00036712,7]
[310284934,1704462641663,-500.0,0.00036712,7]
[310284936,1704462641673,-500.0,0.00036712,7]
[310284937,1704462641683,-500.0,0.00036712,7]
[310284939,1704462641694,-500.0,0.00036712,7]
[310284941,1704462641703,-500.0,0.00036712,7]
[310284943,1704462641713,-500.0,0.00036712,7]
[310284945,1704462641722,-517.23,0.00036712,7]
[310284947,1704462641732,-500.0,0.00036712,7]
[310284949,1704462641740,-500.0,0.00036712,7]
[310284951,1704462641750,-500.0,0.00036712,7]
[310284953,1704462641759,-2142.17,0.00036712,7]
[310284955,1704462641770,-500.0,0.00036712,7]
[310284957,1704462641780,-500.0,0.00036712,7]
[310284959,1704462641789,-651.21,0.00036712,7]
[310284961,1704462641799,-500.0,0.00036712,7]
[310284963,1704462641808,-1277.99,0.00036712,7]
[310284965,1704462641817,-500.0,0.00036712,7]
[310284967,1704462641826,-500.0,0.00036712,7]
[310284969,1704462641836,-500.0,0.00036712,7]
[310284971,1704462641846,-890.84,0.00036712,7]
[310284973,1704462641855,-500.0,0.00036712,7]
[310284975,1704462641864,-500.0,0.00036712,7]
[310284977,1704462641874,-500.0,0.00036712,7]
[310284979,1704462641883,-703.55,0.00036712,7]
[310284981,1704462641892,-500.0,0.00036712,7]
[310284982,1704462641902,-500.0,0.00036712,7]
[310284984,1704462641911,-500.0,0.00036712,7]
[310284986,1704462641920,-2492.02,0.00036712,7]
[310284988,1704462641930,-500.0,0.00036712,7]
[310284990,1704462641938,-1087.22,0.00036712,7]
[310284992,1704462641947,-891.1,0.00036712,7]
[310284994,1704462641957,-500.0,0.00036712,7]
[310284996,1704462641966,-27748.25,0.00036712,3]
[310284998,1704462641975,-5401.14,0.00036712,7]
[310285000,1704462641985,-904.1,0.00036712,7]
[310285002,1704462641997,-450.4775009,0.00036712,7]
[310285004,1704462642006,-3724.39,0.00036712,7]
[310285006,1704462642015,-500.0,0.00036712,7]
[310285008,1704462642026,-500.0,0.00036712,7]
[310285010,1704462642036,-500.0,0.00036712,7]
[310285012,1704462642045,-588.66992823,0.00036712,7]
[310285014,1704462642055,-500.0,0.00036712,7]
[310285016,1704462642064,-500.0,0.00036712,7]
[310285018,1704462642073,-500.0,0.00036986,7]
[310285020,1704462642082,-500.0,0.00036986,7]
[310285022,1704462642091,-500.0,0.00036986,7]
[310285024,1704462642100,-500.0,0.00036986,7]
[310285026,1704462642110,-500.0,0.00036986,7]
[310285028,1704462642119,-500.0,0.00036986,7]
[310285030,1704462642128,-500.0,0.00036986,7]
[310285032,1704462642138,-517.23,0.00036986,7]
[310285034,1704462642148,-500.0,0.00036986,7]
[310285036,1704462642158,-500.0,0.00036986,7]
[310285038,1704462642167,-2142.17,0.00036986,7]
[310285040,1704462642176,-500.0,0.00036986,7]
[310285042,1704462642188,-651.21,0.00036986,7]
[310285043,1704462642197,-1277.99,0.00036986,7]
[310285045,1704462642206,-500.0,0.00036986,7]
[310285047,1704462642215,-890.84,0.00036986,7]
[310285049,1704462642225,-500.0,0.00036986,7]
[310285051,1704462642235,-703.55,0.00036986,7]
[310285053,1704462642245,-500.0,0.00036986,7]
[310285055,1704462642254,-500.0,0.00036986,7]
[310285057,1704462642263,-2492.02,0.00036986,7]
[310285059,1704462642274,-1087.22,0.00036986,7]
[310285061,1704462642284,-891.1,0.00036986,7]
[310285063,1704462642293,-500.0,0.00036986,7]
[310285065,1704462642303,-27748.25,0.00036986,3]
[310285067,1704462642312,-5401.14,0.00036986,7]
[310285069,1704462642322,-904.1,0.00036986,7]
[310285071,1704462642331,-3724.39,0.00036986,7]
[310285073,1704462642341,-500.0,0.00036986,7]
[310285075,1704462642350,-500.0,0.00036986,7]
[310285078,1704462642360,-500.0,0.00036986,7]
[310285081,1704462642369,-500.0,0.00036986,7]
[310285085,1704462642379,-4209.5776207,0.00037,7]
[310285088,1704462642389,-1000.0,0.00037,37]
[310285091,1704462642398,-1268.062321,0.00037075,2]
[310285093,1704462642407,-500.0,0.0003726,7]
[310285095,1704462642417,-500.0,0.0003726,7]
[310285098,1704462642426,-500.0,0.0003726,7]
[310285101,1704462642436,-500.0,0.0003726,7]
[310285104,1704462642445,-500.0,0.0003726,7]
[310285106,1704462642455,-500.0,0.0003726,7]
[310285107,1704462642465,-500.0,0.0003726,7]
[310285110,1704462642476,-517.23,0.0003726,7]
[310285114,1704462642485,-500.0,0.0003726,7]
[310285116,1704462642495,-564.16201128,0.0003726,7]
[310285118,1704462642505,-2142.17,0.0003726,7]
[310285120,1704462642515,-500.0,0.0003726,7]
[310285122,1704462642526,-651.21,0.0003726,7]
[310285124,1704462642536,-1277.99,0.0003726,7]
[310285125,1704462642546,-500.0,0.0003726,7]
[310285126,1704462642555,-890.84,0.0003726,7]
[310285128,1704462642565,-500.0,0.0003726,7]
[310285130,1704462642574,-703.55,0.0003726,7]
[310285132,1704462642584,-500.0,0.0003726,7]
[310285134,1704462642593,-500.0,0.0003726,7]
[310285136,1704462642602,-2492.02,0.0003726,7]
[310285138,1704462642611,-1087.22,0.0003726,7]
[310285139,1704462642620,-891.1,0.0003726,7]
[310285141,1704462642630,-500.0,0.0003726,7]
[310285142,1704462642639,-27748.25,0.0003726,3]
[310285143,1704462642649,-5401.14,0.0003726,7]
[310285144,1704462642658,-904.1,0.0003726,7]
[310285145,1704462642666,-421.43344723,0.0003726,7]
[310285146,1704462642683,-1276.87891946,0.0003726,7]
[310285147,1704462642695,-2026.07763331,0.0003726,7]
[310285148,1704462642705,-500.0,0.0003726,7]
[310285149,1704462642714,-523.71661364,0.0003726,7]
[310285150,1704462642724,-500.0,0.0003726,7]
[310285151,1704462642733,-500.0,0.0003726,7]
[310285152,1704462642743,-500.0,0.00037534,7]
[310285153,1704462642752,-500.0,0.00037534,7]
[310285154,1704462642761,-500.0,0.00037534,7]
[310285155,1704462642773,-500.0,0.00037534,7]
[310285156,1704462642782,-500.0,0.00037534,7]
[310285157,1704462642791,-500.0,0.00037534,7]
[310285158,1704462642801,-500.0,0.00037534,7]
[310285159,1704462642810,-517.23,0.00037534,7]
[310285160,1704462642820,-500.0,0.00037534,7]
[310285161,1704462642829,-2142.17,0.00037534,7]
[310285162,1704462642839,-500.0,0.00037534,7]
[310285163,1704462642849,-651.21,0.00037534,7]
[310285164,1704462642858,-1277.99,0.00037534,7]
[310285165,1704462642868,-500.0,0.00037534,7]
[310285166,1704462642877,-890.84,0.00037534,7]
[310285167,1704462642887,-500.0,0.00037534,7]
[310285168,1704462642897,-703.55,0.00037534,7]
[310285169,1704462642907,-252.53534228,0.00037534,7]
[310285170,1704462642917,-500.0,0.00037534,7]
[310285171,1704462642926,-2492.02,0.00037534,7]
[310285172,1704462642935,-1087.22,0.00037534,7]
[310285173,1704462642945,-500.0,0.00037534,7]
[310285174,1704462642954,-891.1,0.00037534,7]
[310285175,1704462642962,-12641.3140421,0.00037534,3]
[310286020,1704463838195,-154.79876161,0.0002638,4]
[310286021,1704463838205,-289.01104321,0.00026381,2]
[310286022,1704463838214,-166.24243892,0.00026381,2]
[310286023,1704463838224,-170.26544559,0.00026382,2]
[310286024,1704463838234,-151.90143304,0.00026395,2]
[310286025,1704463838245,-4805.95187492,0.00026485,2]
[310286026,1704463838255,-9907.49920413,0.00026486,2]
[310286027,1704463838265,-436.53901,0.00026498,2]
[310286028,1704463838274,-166.666666,0.0002654,2]
[310286029,1704463838283,-151.90143304,0.00027269,2]
[310286030,1704463838292,-2226.30741276,0.00027497,2]
[310286031,1704463838301,-2093.24881992,0.00027498,2]
[310286033,1704463838310,-366.67548664,0.00027498,2]
[310286034,1704463838319,-279.45579942,0.00027498,2]
[310286036,1704463838329,-722.06768057,0.00027498,2]
[310286037,1704463838339,-17726.26253839,0.000275,2]
[310286038,1704463838350,-151.90143304,0.00028143,2]
[310286039,1704463838359,-151.90143304,0.00029016,2]
[310286041,1704463838368,-151.90143304,0.0002989,2]
[310286043,1704463838377,-156.36114345,0.000299,2]
[310286044,1704463838387,-20659.82,0.0002999,3]
[310286045,1704463838397,-395.39823691,0.00029999,2]
[310286046,1704463838407,-500.0,0.00029999,2]
[310286047,1704463838416,-497.23129089,0.00029999,2]
[310286048,1704463838427,-500.0,0.00029999,2]
[310286049,1704463838437,-198.44680717,0.00029999,2]
[310286050,1704463838446,-500.0,0.00029999,2]
[310286051,1704463838455,-500.0,0.00029999,2]
[310286052,1704463838466,-266.70922976,0.00029999,2]
[310286053,1704463838476,-2750.21591567,0.0003,2]
[310286054,1704463838488,-49849.98375736,0.0003,10]
[310286055,1704463838498,-28124.30910027,0.0003,30]
[310286056,1704463838507,-243.43593693,0.0003,4]
[310286057,1704463838518,-313.0,0.0003,2]
[310286058,1704463838529,-166.666666,0.00030158,2]
[310286059,1704463838538,-313.0,0.00033,2]
[310286060,1704463838547,-156.36114344,0.00033393,2]
[310286061,1704463838558,-685.71824329,0.00033869,4]
[310286062,1704463838569,-191.768094,0.0003387,2]
[310286063,1704463838579,-1000.0,0.00034,7]
[310286064,1704463838590,-2000.0,0.000345,2]
[310286065,1704463838602,-4000.0,0.00034521,2]
[310286066,1704463838613,-2650.27448344,0.00035,4]
[310286067,1704463838625,-815.06095897,0.0003516,2]
[310286068,1704463838635,-9944.27160163,0.00035367,2]
[310286069,1704463838645,-1746.37312328,0.00035367,2]
[310286070,1704463838655,-590.48899212,0.00035367,2]
[310286071,1704463838665,-205.73517923,0.00035367,2]
[310286072,1704463838675,-184.77970273,0.0003539,2]
[310286073,1704463838685,-184.85176643,0.0003539,2]
[310286074,1704463838695,-530.0,0.00035452,2]
[310286075,1704463838705,-155.45432853,0.00035488,4]
[310286076,1704463838715,-176.93301286,0.00035488,4]
[310286077,1704463838726,-295.50181395,0.00035488,4]
[310286078,1704463838738,-1320.81396188,0.00035488,4]
[310286079,1704463838748,-7029.07521928,0.00035489,4]
[310286080,1704463838757,-162.9898,0.00035615,4]
[310286081,1704463838767,-500.0,0.00035616,7]
[310286082,1704463838776,-500.0,0.00035616,7]
[310286083,1704463838786,-500.0,0.00035616,7]
[310286084,1704463838794,-500.0,0.00035616,7]
[310286085,1704463838803,-500.0,0.00035616,7]
[310286086,1704463838813,-500.0,0.00035616,7]
[310286087,1704463838822,-500.0,0.00035616,7]
[310286088,1704463838831,-500.0,0.00035616,7]
[310286089,1704463838840,-500.0,0.00035616,7]
[310286090,1704463838849,-500.0,0.00035616,7]
[310286091,1704463838859,-500.0,0.00035616,7]
[310286092,1704463838868,-500.0,0.00035616,7]
[310286093,1704463838877,-500.0,0.00035616,7]
[310286094,1704463838886,-500.0,0.00035616,7]
[310286095,1704463838896,-500.0,0.00035616,7]
[310286096,1704463838905,-500.0,0.00035616,7]
[310286097,1704463838914,-500.0,0.00035616,7]
[310286098,1704463838923,-500.0,0.00035616,7]
[310286099,1704463838933,-500.0,0.00035616,7]
[310286100,1704463838942,-500.0,0.00035616,7]
[310286101,1704463838952,-500.0,0.00035616,7]
[310286102,1704463838961,-500.0,0.00035616,7]
[310286103,1704463838971,-500.0,0.00035616,7]
[310286104,1704463838979,-322.38104457,0.00035616,7]
[310286105,1704463838989,-500.0,0.00035616,7]
[310286106,1704463838998,-500.0,0.00035616,7]
[310286107,1704463839007,-500.0,0.00035616,7]
[310286108,1704463839017,-500.0,0.00035616,7]
[310286109,1704463839026,-500.0,0.00035616,7]
[310286110,1704463839036,-500.0,0.00035616,7]
[310286111,1704463839044,-500.0,0.00035616,7]
[310286112,1704463839055,-500.0,0.00035616,7]
[310286113,1704463839064,-500.0,0.00035616,7]
[310286114,1704463839073,-500.0,0.00035616,7]
[310286115,1704463839082,-533.48335192,0.00035616,7]
[310286116,1704463839091,-500.0,0.00035616,7]
[310286117,1704463839101,-500.0,0.00035616,7]
[310286118,1704463839109,-399.62154004,0.00035616,7]
[310286119,1704463839119,-500.0,0.00035616,7]
[310286120,1704463839128,-1277.99,0.00035616,7]
[310286121,1704463839138,-500.0,0.00035616,7]
[310286122,1704463839147,-890.84,0.00035616,7]
[310286123,1704463839157,-2142.17,0.00035616,7]
[310286124,1704463839166,-500.0,0.00035616,7]
[310286125,1704463839176,-500.0,0.00035616,7]
[310286126,1704463839186,-500.0,0.00035616,7]
[310286127,1704463839195,-500.0,0.00035616,7]
[310286128,1704463839204,-651.21,0.00035616,7]
[310286129,1704463839213,-703.55,0.00035616,7]
[310286130,1704463839223,-500.0,0.00035616,7]
[310286131,1704463839232,-2492.02,0.00035616,7]
[310286132,1704463839241,-1087.22,0.00035616,7]
[310286133,1704463839250,-500.0,0.00035616,7]
[310286134,1704463839260,-500.0,0.00035616,7]
[310286135,1704463839269,-5401.14,0.00035616,7]
[310286136,1704463839278,-500.0,0.00035616,7]
[310286137,1704463839287,-500.0,0.00035616,7]
[310286138,1704463839296,-891.1,0.00035616,7]
[310286139,1704463839305,-30707.53,0.00035616,3]
[310286140,1704463839314,-500.0,0.00035616,7]
[310286141,1704463839323,-500.0,0.00035616,7]
[310286142,1704463839333,-500.0,0.00035616,7]
[310286143,1704463839342,-194.36500845,0.00035616,7]
[310286144,1704463839352,-500.0,0.00035616,7]
[310286145,1704463839361,-904.1,0.00035616,7]
[310286146,1704463839371,-3724.39,0.00035616,7]
[310286147,1704463839380,-500.0,0.00035616,7]
[310286148,1704463839390,-500.0,0.00035616,7]
[310286149,1704463839400,-500.0,0.00035616,7]
[310286150,1704463839409,-181.87854,0.00035616,120]
[310286151,1704463839418,-4000.0,0.00035798,2]
[310286152,1704463839428,-12206.9372436,0.000358,5]
[310286153,1704463839438,-500.0,0.00035889,4]
[310286154,1704463839447,-640.33383901,0.00035889,4]
[310286155,1704463839457,-584.35312554,0.00035889,4]
[310286156,1704463839466,-621.62980796,0.00035889,4]
[310286157,1704463839475,-193.37474437,0.00035889,4]
[310286158,1704463839484,-500.0,0.00035889,4]
[310286159,1704463839495,-457.80007872,0.00035889,4]
[310286160,1704463839504,-500.0,0.00035889,4]
[310286161,1704463839514,-500.0,0.00035889,4]
[310286162,1704463839523,-500.0,0.00035889,4]
[310286163,1704463839533,-325.03192232,0.00035889,7]
[310286164,1704463839542,-169.45638725,0.00035889,7]
[310286165,1704463839552,-523.83510538,0.00035889,7]
[310286166,1704463839561,-500.0,0.00035889,7]
[310286167,1704463839572,-500.0,0.00035889,7]
[310286168,1704463839581,-500.0,0.0003589,7]
[310286169,1704463839591,-500.0,0.0003589,7]
[310286170,1704463839600,-500.0,0.0003589,7]
[310286171,1704463839609,-500.0,0.0003589,7]
[310286172,1704463839619,-500.0,0.0003589,7]
[310286173,1704463839629,-500.0,0.0003589,7]
[310286174,1704463839639,-500.0,0.0003589,7]
[310286175,1704463839648,-500.0,0.0003589,7]
[310286176,1704463839659,-500.0,0.0003589,7]
[310286177,1704463839668,-500.0,0.0003589,7]
[310286178,1704463839678,-500.0,0.0003589,7]
[310286179,1704463839687,-500.0,0.0003589,7]
[310286180,1704463839696,-500.0,0.0003589,7]
[310286181,1704463839706,-500.0,0.0003589,7]
[310286182,1704463839715,-500.0,0.0003589,7]
[310286183,1704463839724,-500.0,0.0003589,7]
[310286184,1704463839733,-500.0,0.0003589,7]
[310286185,1704463839743,-500.0,0.0003589,7]
[310286186,1704463839752,-500.0,0.0003589,7]
[310286187,1704463839761,-500.0,0.0003589,7]
[310286188,1704463839771,-537.72586878,0.0003589,7]
[310286189,1704463839780,-500.0,0.0003589,7]
[310286190,1704463839789,-500.0,0.0003589,7]
[310286191,1704463839798,-500.0,0.0003589,7]
[310286192,1704463839807,-500.0,0.0003589,7]
[310286193,1704463839816,-500.0,0.0003589,7]
[310286194,1704463839826,-500.0,0.0003589,7]
[310286195,1704463839835,-500.0,0.0003589,7]
[310286196,1704463839844,-500.0,0.0003589,7]
[310286197,1704463839854,-500.0,0.0003589,7]
[310286198,1704463839863,-500.0,0.0003589,7]
[310286199,1704463839874,-500.0,0.0003589,7]
[310286200,1704463839883,-500.0,0.0003589,7]
[310286201,1704463839892,-1277.99,0.0003589,7]
[310286202,1704463839902,-500.0,0.0003589,7]
[310286203,1704463839911,-890.84,0.0003589,7]
[310286204,1704463839920,-2142.17,0.0003589,7]
[310286205,1704463839930,-500.0,0.0003589,7]
[310286206,1704463839940,-500.0,0.0003589,7]
[310286207,1704463839949,-500.0,0.0003589,7]
[310286208,1704463839959,-500.0,0.0003589,7]